[Event "Gibraltar Amateurs A 2020"]
[Site "Caleta"]
[Date "2020.01.21"]
[Round "3.11"]
[White "Nash, Damian"]
[Black "Jimenez Urquijo, Juan Manuel"]
[Result "1/2-1/2"]
[ECO "A00"]
[WhiteElo "1890"]
[BlackElo "1567"]
[Annotator "NA RC"]
[PlyCount "109"]
[EventDate "2020.01.20"]
[EventType "swiss"]
[EventCountry "GGB"]
[SourceTitle "playchess.com"]
[Source "ChessBase"]
[SourceQuality "1"]
[TimeControl "6600+10"]

1. Nc3 {[%emt 0:05:26]} e6 {[%emt 0:02:23]} 2. g3 {[%emt 0:03:53]} (2. d4 d5 3. Bf4 Nf6 4. e3 Bd6 5. Bd3 O-O 6. Nge2 c5 7. dxc5 Bxc5 8. O-O Nc6 9. Bg5 Be7 10. Ng3 h6 11. Bxf6 Bxf6 12. e4 Bxc3 13. bxc3 {1-0 (30) Turner,M (2534)-Rendle,T (2461) Birmingham 2019}) 2... Nf6 {[%emt 0:03:12]} 3. Bg2 {[%emt 0:00:03]} d5 {[%emt 0:01:28]} 4. d3 {[%emt 0:03:18]} c6 {[%emt 0:03:33]} 5. e4 {[%emt 0:07:28]} d4 {[%emt 0:03:37]} 6. Nce2 {[%emt 0:00:13] A00: Irregular Openings} e5 {[%emt 0:00:10]} 7. f4 {[%emt 0:01:52]} Bg4 $146 {[%emt 0:02:09]} (7... exf4 $1 $11 8. Bxf4 Bc5) ({Predecessor:} 7... Bd6 8. Nf3 Qa5+ 9. Bd2 Qc7 10. O-O c5 11. h3 Nbd7 {½-½ (27) Luebeck,S (1984)-Aunin,R (1796) Hamburg 2018}) 8. h3 {[%emt 0:07:51]} ({Better is} 8. fxe5 $16 Nfd7 9. h3 Bxe2 10. Nxe2 (10. Kxe2 Nxe5 11. Nf3 Nxf3 $11)) 8... Bxe2 {[%emt 0:00:45]} 9. Nxe2 {[%emt 0:01:54]} Nbd7 {[%emt 0:01:11]} 10. O-O {[%emt 0:01:28]} Bd6 {[%emt 0:03:53]} 11. c3 {[%emt 0:02:16]} c5 {[%emt 0:03:16] [#]} 12. Kh1 {[%emt 0:06:52]} (12. b4 $1 $16 {[%mdl 512]}) 12... Qc7 {[%emt 0:01:22]} 13. Bd2 {[%emt 0:03:26]} O-O {[%emt 0:06:59]} 14. f5 {[%emt 0:06:50]} b5 {[%emt 0:05:25]} 15. Rc1 {[%emt 0:03:53]} Qb6 {[%emt 0:01:39]} 16. g4 {[%emt 0:02:05]} Rac8 {[%emt 0:02:28]} ({Black should play} 16... h6 $11) 17. Ng3 {[%emt 0:02:30]} Rfd8 {[%emt 0:06:16]} 18. g5 {[%emt 0:01:36]} Ne8 $1 {[%emt 0:01:16]} 19. Qg4 {[%emt 0:09:16]} f6 {[%emt 0:03:46]} (19... c4 $15) 20. Rg1 {[%emt 0:05:33]} ({White should play} 20. Nh5 $14) 20... c4 {[%emt 0:04:40]} 21. Bf1 {[%emt 0:02:10]} fxg5 {[%emt 0:04:03]} 22. Bxg5 {[%emt 0:03:21]} Ndf6 {[%emt 0:00:49]} 23. Qh4 {[%emt 0:01:11]} (23. Qf3 $1 $11 {keeps the balance.}) 23... Be7 {[%emt 0:06:21]} (23... cxd3 $17 24. Nh5 Be7 25. cxd4 Rxc1 26. Bxc1 Rxd4) 24. cxd4 {[%emt 0:03:56]} Qxd4 {[%emt 0:05:52] Double Attack} 25. dxc4 {[%emt 0:04:30]} bxc4 {[%emt 0:02:59]} 26. Nh5 {[%emt 0:01:44]} Nxe4 {[%emt 0:05:27]} 27. Bxe7 {[%emt 0:01:11]} Nf2+ {[%emt 0:03:48]} 28. Kg2 {[%emt 0:02:31]} Qxb2 {[%emt 0:01:08]} 29. Bxc4+ {[%emt 0:02:38]} Kh8 {[%emt 0:02:01]} 30. Bxd8 {[%emt 0:01:14]} Ng4+ {[%emt 0:02:40]} 31. Kg3 {[%emt 0:04:32]} Qf2+ {[%emt 0:07:06]} 32. Kxg4 {[%emt 0:00:03]} Rxc4+ {[%emt 0:00:33]} 33. Rxc4 {[%emt 0:00:57]} Qxg1+ {[%emt 0:00:26]} 34. Qg3 {[%emt 0:02:14]} Qd1+ {[%emt 0:00:27]} 35. Qf3 {[%emt 0:00:25]} Qxd8 {[%emt 0:01:19]} 36. Re4 $18 {[%emt 0:02:02]} h6 {[%emt 0:01:30]} 37. h4 {[%emt 0:00:02]} Qd2 {[%emt 0:00:28]} 38. Qe2 {[%emt 0:00:29]} Qd7 {[%emt 0:06:16]} 39. Rxe5 {[%emt 0:00:49]} Qd4+ {[%emt 0:00:10]} 40. Re4 {[%emt 0:00:13]} Qg1+ {[%emt 0:00:04]} 41. Kh3 {[%emt 0:00:19]} Qh1+ {[%emt 0:00:16]} 42. Kg3 {[%emt 0:00:20]} Nd6 {[%emt 0:00:27]} 43. Re8+ {[%emt 0:00:29]} Kh7 {[%emt 0:00:36]} 44. Re5 {[%emt 0:00:11]} Qg1+ {[%emt 0:00:22]} 45. Qg2 {[%emt 0:00:19]} Qd4 {[%emt 0:00:28]} 46. Qe2 {[%emt 0:00:18]} Qg1+ {[%emt 0:00:06]} 47. Kf3 {[%emt 0:00:29]} Qh1+ {[%emt 0:00:11]} 48. Qg2 {[%emt 0:00:19]} Qd1+ {[%emt 0:00:11]} 49. Re2 {[%emt 0:00:09]} Qd3+ {[%emt 0:00:18]} 50. Kf2 {[%emt 0:00:09]} Qxf5+ {[%emt 0:00:03]} 51. Ke1 {[%emt 0:00:30]} Qxh5 {[%emt 0:00:08]} 52. Rd2 {[%emt 0:00:16]} Qe5+ {[%emt 0:00:08]} 53. Qe2 {[%emt 0:00:06]} Qg3+ {[%emt 0:00:04]} 54. Qf2 {[%emt 0:00:03]} Qe5+ {[%emt 0:00:05]} 55. Qe2 {[%emt 0:00:06]} 1/2-1/2

[Event "Gibraltar Amateurs A 2020"]
[Site "Caleta"]
[Date "2020.01.21"]
[Round "3.12"]
[White "Krause, Helmut"]
[Black "Sedgwick, David"]
[Result "1/2-1/2"]
[ECO "D32"]
[WhiteElo "1660"]
[BlackElo "1894"]
[Annotator "NA RC"]
[PlyCount "85"]
[EventDate "2020.01.20"]
[EventType "swiss"]
[EventCountry "GGB"]
[SourceTitle "playchess.com"]
[Source "ChessBase"]
[SourceQuality "1"]
[TimeControl "6600+10"]

{[%evp 9,84,8,32767,32767,32767,32767,27,32767,32767,32767,32767,32767,33,-57,-35,-39,-17,-15,2,-96,-117,-101,-97,-110,32767,-117,-87,-85,-90,-70,-11,-506,-141,-146,-130,-136,-136,-238,-168,32767,32767,32767,32767,32767,32767,32767,32767,-210,-136,-125,-148,32767,-124,32767,32767,32767,32767,32767,32767,32767,32767,32767,32767,32767,32767,32767,32767,32767,32767,32767,32767,0,0,32767,32767,32767,0]} 1. d4 {[%emt 0:00:00]} d5 {[%emt 0:10:27]} 2. Nf3 {[%emt 0:00:07]} c5 {[%emt 0:01:03]} 3. c4 {[%emt 0:01:15]} e6 {[%emt 0:00:05]} 4. cxd5 {[%emt 0:01:12]} exd5 {[%emt 0:00:37]} 5. e3 {[%emt 0:00:31]} Nf6 {[%emt 0:00:33]} 6. Be2 {[%emt 0:01:02]} Nc6 {[%emt 0:00:39]} 7. O-O {[%emt 0:04:05]} Be7 {[%emt 0:00:32]} 8. Nc3 {[%emt 0:02:00]} O-O {[%emt 0:00:20]} 9. b3 {[%emt 0:03:10]} Bf5 {[%emt 0:01:56] D32: Tarrasch Defence: Sidelines and lines without g3} 10. dxc5 {[%emt 0:08:21]} Bxc5 {[%emt 0:00:51]} 11. Nd4 $146 {[%emt 0:01:02]} (11. Bb2 $14) ({Predecessor:} 11. Na4 Be7 12. Bb2 Ne4 13. Nd4 Bg6 14. Rc1 Rc8 15. Nxc6 bxc6 16. Qd4 Bf6 17. Qb4 Bxb2 18. Nxb2 {0-1 (43) Jeremic,M (2181)-Pastar,S (2307) Bosanska Krupa 2018}) 11... Nxd4 {[%emt 0:01:51]} 12. exd4 {[%emt 0:00:07]} Bd6 {[%emt 0:00:38]} 13. Bg5 {[%emt 0:06:54]} Rc8 {[%emt 0:04:24]} 14. Bd3 {[%emt 0:17:33]} (14. Bxf6 $11 {keeps the balance.} Qxf6 15. Nxd5 Bxh2+ {[%mdl 64] Decoy} 16. Kxh2 Qd6+ {[%mdl 64] Double Attack} 17. Kg1 Qxd5 18. Bf3) 14... Bxd3 {[%emt 0:06:57]} ({Much worse is} 14... Rxc3 $6 15. Bxf5 h6 16. Bh4 $11) 15. Qxd3 {[%emt 0:00:08] [#]} Bxh2+ $1 {[%emt 0:01:36]} 16. Kh1 {[%emt 0:00:14]} Bb8 {[%emt 0:01:08]} 17. g3 {[%emt 0:05:09]} h6 {[%emt 0:05:57]} 18. Bxf6 {[%emt 0:00:55]} Qxf6 {[%emt 0:01:02]} 19. Nxd5 {[%emt 0:00:26]} Qc6 {[%emt 0:00:30]} (19... Qe6 $17 20. Qf3 Rcd8) 20. Qc4 $2 {[%emt 0:00:36]} (20. Qf3 $1 $11 {and White is okay.} Rfe8 21. Rfc1 Qxc1+ 22. Rxc1 Rxc1+ 23. Kg2) 20... Qxc4 $2 {[%emt 0:00:52]} (20... Qd7 $19 {and Black stays clearly on top.} 21. Nf6+ gxf6) 21. bxc4 {[%emt 0:00:11]} Rxc4 {[%emt 0:01:02]} 22. Ne7+ {[%emt 0:02:11]} Kh7 {[%emt 0:00:36]} 23. Rad1 {[%emt 0:06:54]} (23. Rab1 $17) 23... Re8 {[%emt 0:06:50]} 24. Nf5 {[%emt 0:03:00]} g6 {[%emt 0:01:51]} 25. Ne3 {[%emt 0:00:11]} Ra4 {[%emt 0:00:17]} 26. Rd2 {[%emt 0:00:36]} Kg7 {[%emt 0:02:19]} 27. Rc1 {[%emt 0:11:08]} Bd6 {[%emt 0:10:22]} 28. Rcc2 {[%emt 0:02:21]} (28. Rc4 $17 Rxc4 29. Nxc4) 28... Re4 {[%emt 0:13:09]} 29. Rc4 {[%emt 0:09:36]} Rxc4 {[%emt 0:03:14]} 30. Nxc4 {[%emt 0:02:11]} Bc7 {[%emt 0:01:07]} 31. Kg2 {[%emt 0:00:48]} Bb6 {[%emt 0:01:51]} 32. Nxb6 {[%emt 0:01:19]} axb6 {[%emt 0:00:07]} 33. d5 {[%emt 0:02:39]} Re7 {[%emt 0:03:25]} 34. Rb2 {[%emt 0:00:26]} Kf6 {[%emt 0:02:57]} 35. f4 {[%emt 0:02:20]} Rd7 {[%emt 0:02:48]} 36. Rxb6+ {[%emt 0:00:59]} Ke7 {[%emt 0:01:41]} 37. Kf3 {[%emt 0:01:18]} Rxd5 {[%emt 0:02:35]} 38. Rxb7+ {[%emt 0:00:37]} Kf6 {[%emt 0:00:08]} 39. Rb6+ {[%emt 0:01:19]} Kg7 {[%emt 0:00:06]} 40. Ra6 {[%emt 0:02:06]} Rd2 {[%emt 0:01:05]} 41. Ke3 {[%emt 0:01:35]} Rc2 {[%emt 0:00:58]} 42. a4 {[%emt 0:00:42]} Rc3+ $11 {[%emt 0:00:14]} 43. Kf2 {[%emt 0:00:17]} 1/2-1/2

[Event "Gibraltar Amateurs A 2020"]
[Site "Caleta"]
[Date "2020.01.21"]
[Round "3.13"]
[White "Poggio, Freddie"]
[Black "Dumont, Andre"]
[Result "1-0"]
[ECO "A47"]
[WhiteElo "1680"]
[BlackElo "1872"]
[Annotator "NA RC"]
[PlyCount "124"]
[EventDate "2020.01.20"]
[EventType "swiss"]
[EventCountry "GGB"]
[SourceTitle "playchess.com"]
[Source "ChessBase"]
[SourceQuality "1"]
[TimeControl "6600+10"]

1. d4 {[%emt 0:00:39]} Nf6 {[%emt 0:00:00]} 2. Nf3 {[%emt 0:00:14]} e6 {[%emt 0:00:16]} 3. e3 {[%emt 0:00:30]} b6 {[%emt 0:00:18]} 4. Bd3 {[%emt 0:00:48]} Bb7 {[%emt 0:00:08]} 5. Nbd2 {[%emt 0:00:27]} c5 {[%emt 0:05:16]} 6. c3 {[%emt 0:00:15]} Nc6 {[%emt 0:07:24]} 7. Qe2 {[%emt 0:02:27]} cxd4 {[%emt 0:02:18] A47: 1 d4 Nf6 2 Nf3 b6: Torre, London and Colle Systems} 8. cxd4 $146 {[%emt 0:00:28]} ({Predecessor:} 8. exd4 Nd5 9. Nc4 Qc7 10. O-O Be7 11. Nce5 O-O 12. Ng5 f5 13. Bd2 Rae8 14. Rae1 a5 15. Qd1 {½-½ (26) Becking,S (2387)-Chernov,V (2505) Deizisau 2008}) 8... Nb4 {[%emt 0:01:06]} 9. Bb1 {[%emt 0:01:52]} Ba6 {[%emt 0:05:20]} 10. Qd1 {[%emt 0:02:46]} Nd3+ {[%emt 0:02:38]} 11. Bxd3 {[%emt 0:01:04]} Bxd3 {[%emt 0:00:10]} 12. Ne5 {[%emt 0:03:07]} Ba6 {[%emt 0:02:23]} 13. Qa4 {[%emt 0:04:00]} Qc8 {[%emt 0:01:51]} 14. a3 {[%emt 0:02:24]} Be7 {[%emt 0:08:31]} 15. b4 {[%emt 0:03:24]} b5 {[%emt 0:30:06]} 16. Qb3 {[%emt 0:01:19]} Bb7 {[%emt 0:01:35]} 17. O-O {[%emt 0:01:34]} Bd5 {[%emt 0:03:00]} 18. Qb1 {[%emt 0:00:59]} d6 {[%emt 0:01:48]} 19. e4 {[%emt 0:07:40]} Bb7 {[%emt 0:03:41]} 20. Nef3 {[%emt 0:01:37]} d5 {[%emt 0:01:28]} ({Better is} 20... O-O $15) 21. e5 {[%emt 0:01:31]} Ne4 {[%emt 0:00:09]} 22. Bb2 {[%emt 0:01:24]} O-O {[%emt 0:01:54]} 23. Nxe4 {[%emt 0:01:33]} (23. Nb3 $14) 23... dxe4 {[%emt 0:00:16]} 24. Nd2 {[%emt 0:00:17]} Qc6 {[%emt 0:00:22]} 25. f3 {[%emt 0:04:23]} Bg5 {[%emt 0:01:30]} 26. Nxe4 {[%emt 0:01:32]} Be3+ {[%emt 0:01:04]} 27. Kh1 {[%emt 0:00:15]} Qb6 {[%emt 0:02:25]} 28. Qd3 {[%emt 0:01:05]} Bxe4 {[%emt 0:03:15]} 29. Qxe4 {[%emt 0:02:33]} Bh6 {[%emt 0:00:10]} 30. Bc1 {[%emt 0:00:51]} Bxc1 {[%emt 0:00:23]} 31. Raxc1 {[%emt 0:01:04]} Rfd8 {[%emt 0:00:15]} 32. Rfd1 {[%emt 0:03:30]} Rac8 {[%emt 0:02:03]} 33. h4 {[%emt 0:03:28]} h6 {[%emt 0:02:15]} 34. Rxc8 {[%emt 0:01:14]} Rxc8 {[%emt 0:00:20]} 35. f4 {[%emt 0:01:03]} Qd8 {[%emt 0:04:45]} 36. g3 {[%emt 0:01:06]} Rc3 {[%emt 0:00:14]} 37. Rd3 {[%emt 0:00:31]} Qc7 {[%emt 0:06:58]} 38. Rxc3 {[%emt 0:06:07]} Qxc3 {[%emt 0:00:03]} 39. Kg2 {[%emt 0:00:31]} Qxa3 {[%emt 0:01:09]} 40. d5 {[%emt 0:00:40]} Qa2+ {[%emt 0:00:41]} 41. Kf3 {[%emt 0:00:22]} Qb3+ {[%emt 0:01:20]} 42. Ke2 {[%emt 0:00:50]} exd5 {[%emt 0:00:13]} 43. Qe3 {[%emt 0:01:45]} Qxb4 {[%emt 0:00:47]} 44. Qxa7 {[%emt 0:00:20]} Qc4+ {[%emt 0:00:22]} 45. Kd2 {[%emt 0:02:50]} d4 {[%emt 0:02:13]} 46. Qa8+ {[%emt 0:00:51]} Kh7 {[%emt 0:00:01]} 47. Qe4+ {[%emt 0:00:18]} g6 {[%emt 0:00:01]} 48. e6 {[%emt 0:00:32]} Qc3+ {[%emt 0:01:15]} 49. Kd1 {[%emt 0:00:53]} Qb3+ {[%emt 0:00:43]} 50. Kd2 {[%emt 0:00:45]} Qxe6 {[%emt 0:00:04]} 51. Qxd4 {[%emt 0:00:24]} h5 {[%emt 0:00:23]} 52. Qb4 $19 {[%emt 0:03:01]} Qd5+ {[%emt 0:00:34]} 53. Ke3 {[%emt 0:01:05]} Qc4 {[%emt 0:00:50]} 54. Qxc4 {[%emt 0:00:26]} bxc4 {[%emt 0:00:02]} 55. Kd4 {[%emt 0:00:12]} Kg7 {[%emt 0:00:17]} 56. Kxc4 {[%emt 0:00:14]} Kf6 {[%emt 0:00:00]} 57. Kd4 {[%emt 0:00:25]} Kf5 {[%emt 0:00:00]} 58. Ke3 {[%emt 0:00:16]} Kg4 {[%emt 0:00:00]} 59. Kf2 {[%emt 0:00:13]} Kh3 {[%emt 0:00:12]} 60. f5 {[%emt 0:01:02]} gxf5 {[%emt 0:00:19]} 61. Kf3 {[%emt 0:00:20]} f6 {[%emt 0:00:17]} 62. Kf4 {[%emt 0:00:03]} Kg2 {[%emt 0:00:02]} 1-0

[Event "Gibraltar Amateurs A 2020"]
[Site "Caleta"]
[Date "2020.01.21"]
[Round "3.14"]
[White "Hudson, Jeremy"]
[Black "Bryant, Richard B E"]
[Result "1-0"]
[ECO "A40"]
[WhiteElo "1570"]
[BlackElo "1849"]
[Annotator "NA RC"]
[PlyCount "135"]
[EventDate "2020.01.20"]
[EventType "swiss"]
[EventCountry "GGB"]
[SourceTitle "playchess.com"]
[Source "ChessBase"]
[SourceQuality "1"]
[TimeControl "6600+10"]

1. e4 {[%emt 0:00:00]} e6 {[%emt 0:02:49]} 2. c4 {[%emt 0:01:13]} b6 {[%emt 0:00:29]} 3. Nc3 {[%emt 0:00:07]} Bb7 {[%emt 0:00:09]} 4. d4 {[%emt 0:03:49]} Bb4 {[%emt 0:01:27]} 5. d5 {[%emt 0:10:30]} e5 {[%emt 0:02:00]} (5... Ne7 6. Bd3 Bxc3+ 7. bxc3 Na6 8. Be3 O-O 9. Ne2 f5 10. Rb1 fxe4 11. Bxe4 Nf5 12. Bxf5 Rxf5 13. Nd4 {0-1 (29) Gomez,J (2526)-Shengelia,D (2556) Tromsoe 2014}) 6. Nf3 {[%emt 0:05:25] A40: Unusual replies to 1 d4} (6. Bd2 $16) 6... Bxc3+ {[%emt 0:01:18]} 7. bxc3 {[%emt 0:00:09]} d6 {[%emt 0:00:20]} 8. Bd3 {[%emt 0:08:24]} Nd7 {[%emt 0:00:46]} 9. Be3 {[%emt 0:00:46]} Ngf6 {[%emt 0:00:53]} 10. Nd2 $146 {[%emt 0:00:49]} ({Predecessor:} 10. h3 O-O 11. O-O h6 12. Nh2 Qe7 13. Bc2 {½-½ (46) Grueneschild,H (1535)-Wawrinsky,L (1725) Bad Griesbach 2004}) 10... O-O {[%emt 0:02:25]} 11. O-O {[%emt 0:00:15]} Nc5 {[%emt 0:01:35]} 12. Bxc5 {[%emt 0:04:42]} dxc5 {[%emt 0:01:33]} 13. f4 {[%emt 0:04:57]} Nd7 {[%emt 0:02:59]} 14. f5 {[%emt 0:09:16]} Nf6 {[%emt 0:00:57]} 15. g4 {[%emt 0:02:24]} h6 {[%emt 0:01:35]} 16. h4 {[%emt 0:00:06]} Nh7 {[%emt 0:01:01]} 17. Nf3 {[%emt 0:01:08]} Qe7 {[%emt 0:00:49]} 18. Qd2 {[%emt 0:03:37]} f6 {[%emt 0:02:22]} 19. Qh2 {[%emt 0:01:41]} Rfe8 {[%emt 0:01:13]} 20. Kf2 {[%emt 0:01:25]} Kf7 {[%emt 0:02:24] [#]} (20... c6 $16) 21. g5 $1 {[%emt 0:05:05]} Nf8 {[%emt 0:00:30]} 22. Rg1 {[%emt 0:08:12]} Red8 {[%emt 0:00:46]} 23. gxh6 {[%emt 0:08:54]} gxh6 {[%emt 0:00:09]} 24. Bc2 {[%emt 0:03:43]} b5 {[%emt 0:01:11]} 25. Qg3 {[%emt 0:03:06]} Rd7 {[%emt 0:07:58]} (25... Ke8 $142 26. Qg8 Qh7 27. cxb5 Qxg8 28. Rxg8 Kd7) 26. cxb5 {[%emt 0:02:47]} c4 {[%emt 0:00:35]} 27. Qg7+ {[%emt 0:00:38]} Ke8 {[%emt 0:00:11]} 28. Qxe7+ {[%emt 0:00:16]} Kxe7 {[%emt 0:00:48]} 29. Nd2 {[%emt 0:00:21]} a6 {[%emt 0:01:56]} 30. a4 {[%emt 0:00:11]} axb5 {[%emt 0:01:30]} 31. axb5 {[%emt 0:00:02]} Rxa1 {[%emt 0:00:07]} 32. Rxa1 {[%emt 0:00:02]} c6 {[%emt 0:00:33]} 33. bxc6 {[%emt 0:05:53]} Bxc6 {[%emt 0:00:08]} 34. Nxc4 {[%emt 0:00:05]} Bb5 {[%emt 0:01:14]} 35. Bd3 {[%emt 0:00:22]} Bxc4 {[%emt 0:01:31]} 36. Bxc4 {[%emt 0:00:07]} Rc7 {[%emt 0:00:06]} 37. Bb5 {[%emt 0:02:26]} Rxc3 {[%emt 0:01:09]} 38. Ra7+ {[%emt 0:00:24]} Kd8 {[%emt 0:02:20]} 39. Rf7 {[%emt 0:00:12] Double Attack} Rb3 {[%emt 0:01:03]} 40. Rxf8+ {[%emt 0:03:20]} Ke7 {[%emt 0:00:07]} 41. Re8+ {[%emt 0:00:08]} Kd6 {[%emt 0:01:05]} 42. Re6+ {[%emt 0:02:45]} Kc5 {[%emt 0:01:27]} 43. Be2 {[%emt 0:00:28]} Rh3 {[%emt 0:01:13]} 44. h5 {[%emt 0:00:08]} (44. Rc6+ $142 Kb4 45. d6 Ka4 46. d7 Rh2+ 47. Ke3 Rh3+ 48. Kd2 Rh2 49. d8=Q) 44... Kd4 {[%emt 0:05:01]} 45. Bf3 {[%emt 0:01:56]} Rh2+ {[%emt 0:00:39]} 46. Kg3 {[%emt 0:00:15]} Rd2 {[%emt 0:00:29]} 47. Rxf6 {[%emt 0:00:17]} Ke3 {[%emt 0:00:22]} 48. Rb6 {[%emt 0:01:02]} Ra2 {[%emt 0:01:48]} 49. d6 {[%emt 0:00:53]} Ra7 {[%emt 0:00:59]} 50. Rb5 {[%emt 0:01:46]} Rg7+ {[%emt 0:00:27]} 51. Kh2 {[%emt 0:00:45]} Kxf3 {[%emt 0:00:35]} 52. Rxe5 {[%emt 0:00:31]} Rg2+ {[%emt 0:01:16]} 53. Kh1 {[%emt 0:00:05]} Rg5 {[%emt 0:00:13] [#]} 54. Re6 $4 {[%emt 0:00:29] [#]} (54. d7 $2 {is a self mate.} Kf2 55. f6 Rxe5 56. d8=Q Rxh5#) (54. f6 $1 $18 {[%mdl 512]} Rxe5 55. f7) 54... Rxh5+ $4 {[%emt 0:00:33]} (54... Kf2 $1 {and life is good for Black.} 55. Rxh6 Rg4 56. Rh8 Rh4#) 55. Kg1 $18 {[%emt 0:00:04]} Rg5+ {[%emt 0:00:16]} 56. Kf1 {[%emt 0:00:16]} Rh5 {[%emt 0:00:11]} 57. Rg6 {[%emt 0:00:09]} Rh1+ {[%emt 0:03:42]} 58. Rg1 {[%emt 0:00:02]} Rh2 {[%emt 0:00:04]} 59. f6 {[%emt 0:00:41]} Ra2 {[%emt 0:01:06]} 60. Ke1 {[%emt 0:00:03]} Ra1+ {[%emt 0:07:16]} 61. Kd2 {[%emt 0:00:02]} Ra2+ {[%emt 0:00:06]} 62. Kd3 {[%emt 0:00:19]} Ra3+ {[%emt 0:00:15]} 63. Kd4 {[%emt 0:00:10]} Ra4+ {[%emt 0:00:03]} 64. Kd5 {[%emt 0:00:18]} Ra5+ {[%emt 0:00:29]} 65. Ke6 {[%emt 0:00:05]} Kxe4 {[%emt 0:00:42]} 66. Re1+ {[%emt 0:00:13]} Kd4 {[%emt 0:00:28]} 67. d7 {[%emt 0:00:13]} Ra6+ {[%emt 0:00:37]} 68. Ke7 {[%emt 0:00:02]} 1-0

[Event "Gibraltar Amateurs A 2020"]
[Site "Caleta"]
[Date "2020.01.21"]
[Round "3.15"]
[White "Olaizola, Miguel"]
[Black "D`haluin, Wim"]
[Result "0-1"]
[ECO "B34"]
[WhiteElo "1809"]
[BlackElo "1686"]
[Annotator "NA RC"]
[PlyCount "74"]
[EventDate "2020.01.20"]
[EventType "swiss"]
[EventCountry "GGB"]
[SourceTitle "playchess.com"]
[Source "ChessBase"]
[SourceQuality "1"]
[TimeControl "6600+10"]

1. e4 {[%emt 0:09:05]} c5 {[%emt 0:00:40]} 2. Nc3 {[%emt 0:00:22]} Nc6 {[%emt 0:00:21]} 3. Nf3 {[%emt 0:00:38]} g6 {[%emt 0:00:17]} 4. d4 {[%emt 0:01:02]} cxd4 {[%emt 0:01:49]} 5. Nxd4 {[%emt 0:00:13]} Bg7 {[%emt 0:03:17]} 6. Nxc6 {[%emt 0:01:00]} bxc6 {[%emt 0:00:41]} 7. Bc4 {[%emt 0:01:44]} Rb8 {[%emt 0:01:21]} 8. O-O {[%emt 0:01:19]} Qc7 {[%emt 0:09:04]} 9. Kh1 {[%emt 0:07:51]} (9. Qf3 $14 e6 10. Bf4) 9... e6 {[%emt 0:01:23]} 10. Qe2 {[%emt 0:02:27]} Ne7 {[%emt 0:01:22]} 11. Bb3 {[%emt 0:14:36]} O-O {[%emt 0:01:41]} 12. Bg5 {[%emt 0:03:35]} Re8 {[%emt 0:01:42]} 13. f4 {[%emt 0:09:16]} Qa5 {[%emt 0:10:52]} 14. Qg4 {[%emt 0:14:14]} d5 {[%emt 0:08:49]} 15. Qh4 {[%emt 0:01:16]} Qb4 {[%emt 0:04:28]} 16. a3 {[%emt 0:02:15]} Qc5 {[%emt 0:04:22]} 17. Rf3 {[%emt 0:18:07]} h5 {[%emt 0:15:10]} 18. f5 {[%emt 0:10:05]} (18. Re1 $14 Ba6 19. Rd1) 18... exf5 $15 {[%emt 0:01:51]} 19. Qf4 {[%emt 0:03:04]} Rb7 {[%emt 0:07:25]} 20. Na4 {[%emt 0:01:48]} Qa5 {[%emt 0:01:11]} 21. e5 {[%emt 0:00:34]} c5 {[%emt 0:02:17]} 22. Bf6 {[%emt 0:04:20]} c4 {[%emt 0:02:25]} 23. Bxg7 {[%emt 0:00:17]} Kxg7 {[%emt 0:00:15]} 24. e6 {[%emt 0:00:24]} f6 {[%emt 0:02:32]} 25. Ba2 {[%emt 0:01:11]} Qxa4 {[%emt 0:01:26]} 26. b3 {[%emt 0:00:05]} Qc6 {[%emt 0:01:56]} 27. bxc4 {[%emt 0:00:19]} dxc4 {[%emt 0:02:17]} 28. Bxc4 {[%emt 0:00:26]} Bxe6 {[%emt 0:02:01]} 29. Bd3 {[%emt 0:00:08]} Bd5 {[%emt 0:03:25]} 30. Rg3 {[%emt 0:00:33]} Be4 {[%emt 0:00:38]} 31. Be2 {[%emt 0:00:33]} Rh8 {[%emt 0:04:08]} 32. c4 {[%emt 0:01:07]} h4 {[%emt 0:01:07]} 33. Re3 {[%emt 0:00:29]} Bxg2+ {[%emt 0:01:09]} 34. Kg1 {[%emt 0:00:02]} h3 {[%emt 0:00:34]} 35. Re1 {[%emt 0:00:27]} Qc5 {[%emt 0:02:06]} 36. Kf2 {[%emt 0:00:29]} Kf7 {[%emt 0:00:13]} 37. Bd3 {[%emt 0:00:56]} Ke8 {[%emt 0:00:04]} 0-1